Cogmind - Beta 14 @@@ ROGUE MODE // 2024.10.22 @ 06:16:06 Player: XDRM Result: Destroyed by EC-GQ1(z) with Zionite Laser-S Performance ------------- Evolutions (1) 500 Regions Visited (6) 1200 Robots Destroyed (0) 0 Value Destroyed (0) 0 Prototype IDs (3) 60 Alien Tech Used (0) 0 Bonus (200) 200 TOTAL SCORE: 1960 Bonus ------- Pacifist 200 Cogmind --------- Core Integrity 0/400 Matter 290/300 Energy 99/100 System Corruption 5% Temperature Cool (18) Movement Core (50) Location -7/Deep Caves Parts ------- > --- POWER (1) -------- (None) > --- PROPULSION (4) --- (None) > --- UTILITY (2) ------ Spectral Analyzer ECM Suite > --- WEAPON (2) ------- (None) > --- INVENTORY (5) ---- Weight Redist. System Advanced Terrain Scan Processor Backup Plating I Advanced Hacking Suite CR-A16's Pointy Stick Peak State ------------ > --- POWER ------------ Backup Power I > --- PROPULSION ------- Flight Unit > --- UTILITY ---------- Spectral Analyzer Experimental Core Analyzer > --- WEAPON ----------- (None) > --- INVENTORY -------- Advanced Terrain Scan Processor ECM Suite Backup Plating I Advanced Hacking Suite CR-A16's Pointy Stick [Rating: 22] Favorites ----------- Power Backup Power I Engine Backup Power I Propulsion Flight Unit Hover Unit Backup Propulsion I Flight Unit Flight Unit Utility Small Storage Unit Device ECM Suite Storage Small Storage Unit Processor Spectral Analyzer Protection Backup Plating I Weapon CR-A16's Pointy Stick Piercing Weapon CR-A16's Pointy Stick Build | -11 -10 -10 -9 -9 -7 -7 ------- Run | Yrd Mat Min Mat Min Zio Dee Slots Evolved 2 | . . . 2 . . . Power . | . . . . . . . Propulsion 2 | . . . 2 . . . Utility . | . . . . . . . Weapon . | . . . . . . . Parts Attached 12 | . 1 . . 2 7 2 Power . | . . . . . . . Engine . | . . . . . . . Core . | . . . . . . . Reactor . | . . . . . . . Propulsion 2 | . . . . 1 . 1 Treads . | . . . . . . . Leg . | . . . . . . . Wheel . | . . . . . . . Hover . | . . . . . . . Flight 2 | . . . . 1 . 1 Utility 9 | . 1 . . 1 6 1 Device 3 | . 1 . . . 1 1 Storage 2 | . . . . . 2 . Processor 3 | . . . . . 3 . Hackware . | . . . . . . . Protection 1 | . . . . 1 . . Artifact . | . . . . . . . Weapon 1 | . . . . . 1 . Energy Gun . | . . . . . . . Energy Cannon . | . . . . . . . Ballistic Gun . | . . . . . . . Ballistic Cannon . | . . . . . . . Launcher . | . . . . . . . Special Weapon . | . . . . . . . Impact Weapon . | . . . . . . . Slashing Weapon . | . . . . . . . Piercing Weapon 1 | . . . . . 1 . Special Melee Weapon . | . . . . . . . Unidentified Prototypes 3 | . . . . . 3 . Parts Lost 2 | . . . . . . 2 Power 1 | . . . . . . 1 Propulsion 1 | . . . . . . 1 Utility . | . . . . . . . Weapon . | . . . . . . . Highest Loss Streak 2 | . . . . . . 2 To Critical Strikes . | . . . . . . . Average Slot Usage (%) 32 | . 12 14 18 33 38 33 Engine 8 | . . . 7 11 11 9 Flight 3 | . . . . 5 4 1 Device 6 | . 12 14 11 11 4 3 Storage 6 | . . . . . 8 7 Processor 5 | . . . . . 6 11 Protection 1 | . . . . 5 2 . Peak Build Rating 22 | . 1 1 5 4 22 13 Average Rating 7 | . . 1 1 2 9 12 On Entrance 3 | . . 1 1 2 4 13 Naked Turns 19 | . 19 . . . . . Heaviest Build 7 | . 2 2 3 4 7 6 Greatest Support 10 | 3 3 3 3 4 10 4 Greatest Overweight (x) 1 | . . . . . 1 1 Average Overweight (x) . | . . . . . . . Largest Inventory Capacity 8 | 5 5 5 5 5 8 8 Average Capacity 6 | 5 5 5 5 5 7 6 Most Carried 8 | . 3 3 4 4 8 8 Average Carried 5 | . 1 3 3 3 6 6 Final Capacity 8 | 5 5 5 5 5 8 5 Final Carried 8 | . 3 3 4 3 8 5 Class Distribution -------------------- 100% | Mutant Dominant Class ---------------- Mutant | -10/Materials Mutant | -10/Mines Mutant | -9/Materials Mutant | -9/Mines Mutant | -7/Zion Mutant | -7/Deep Caves Resources | -11 -10 -10 -9 -9 -7 -7 ----------- Run | Yrd Mat Min Mat Min Zio Dee Matter Collected 332 | 194 . 26 . 20 76 16 Remotely . | . . . . . . . Salvage Created . | . . . . . . . Parts . | . . . . . . . Haulers Intercepted . | . . . . . . . Recyclers Shooed . | . . . . . . . Parts Field Recycled . | . . . . . . . Retrieved Matter . | . . . . . . . Parts Self-Destructed . | . . . . . . . Prevented . | . . . . . . . Kills | -11 -10 -10 -9 -9 -7 -7 ------- Run | Yrd Mat Min Mat Min Zio Dee Combat Hostiles Destroyed . | . . . . . . . Classes Destroyed . | . . . . . . . Best Kill Streak . | . . . . . . . Combat Bots Only . | . . . . . . . Max Kills in Single Turn . | . . . . . . . Gunslinging . | . . . . . . . Exploded . | . . . . . . . Melee . | . . . . . . . Uniques/NPCs Destroyed . | . . . . . . . Combat | -11 -10 -10 -9 -9 -7 -7 -------- Run | Yrd Mat Min Mat Min Zio Dee Hostile Shots Fired 13 | . 8 1 1 . . 3 Missed 3 | . 2 . 1 . . . Damage Taken 556 | . 77 10 . . . 469 Core 516 | . 77 10 . . . 429 Absorbed by Shields . | . . . . . . . Core Remaining (%) 82 | 100 . 65 . . . . Volleys Fired . | . . . . . . . Largest . | . . . . . . . Hottest . | . . . . . . . Shots Fired . | . . . . . . . Gun . | . . . . . . . Cannon . | . . . . . . . Launcher . | . . . . . . . Special . | . . . . . . . Kinetic . | . . . . . . . Thermal . | . . . . . . . Explosive . | . . . . . . . Electromagnetic . | . . . . . . . Robot Hit Streak . | . . . . . . . Robot Miss Streak . | . . . . . . . Penetration Max . | . . . . . . . Secondary Targets . | . . . . . . . Shots Hit Robots . | . . . . . . . Core Hits . | . . . . . . . Critical Kills . | . . . . . . . Critical Parts Destroyed . | . . . . . . . Critical Strikes . | . . . . . . . Melee Attacks 1 | . . . . . 1 . Impact . | . . . . . . . Slashing . | . . . . . . . Piercing 1 | . . . . . 1 . Sneak Attacks . | . . . . . . . Combat Hostiles . | . . . . . . . Follow-up Attacks . | . . . . . . . Damage Inflicted . | . . . . . . . Guns . | . . . . . . . Cannons . | . . . . . . . Explosions . | . . . . . . . Melee . | . . . . . . . Ramming . | . . . . . . . Kinetic . | . . . . . . . Thermal . | . . . . . . . Explosive . | . . . . . . . Electromagnetic . | . . . . . . . Impact . | . . . . . . . Slashing . | . . . . . . . Piercing . | . . . . . . . Highest Corruption 5 | . 2 2 . . 5 5 Average Corruption 4 | . 2 2 . . 5 5 Corruption Purged . | . . . . . . . Corruption Blocked . | . . . . . . . Effects 15 | . . 1 . . 10 4 Message Errors 3 | . . . . . 2 1 Matter Fused 4 | . . 1 . . 3 . Heat Flow Errors 3 | . . . . . 3 . Energy Discharges 2 | . . . . . 1 1 Data Loss (minor) 3 | . . . . . 1 2 Overload Shots . | . . . . . . . Overflow Damage . | . . . . . . . Projectiles . | . . . . . . . Explosions . | . . . . . . . Melee . | . . . . . . . Knockbacks . | . . . . . . . Impact . | . . . . . . . Kinetic . | . . . . . . . Secondary . | . . . . . . . Self-Inflicted Damage . | . . . . . . . Shots . | . . . . . . . Rammed . | . . . . . . . Targets Rammed . | . . . . . . . Kicked . | . . . . . . . Crushed . | . . . . . . . Highest Temperature 262 | . . . . . 262 . Average Temperature 119 | . . . . . 119 . Received Heat Transfer 30 | . 12 . . . . 18 Siege Activations . | . . . . . . . Robots Corrupted . | . . . . . . . Combat Hostiles . | . . . . . . . Parts Fried . | . . . . . . . Impact Corruptions . | . . . . . . . Robots Melted . | . . . . . . . Combat Hostiles . | . . . . . . . Parts Melted . | . . . . . . . Heat Transferred . | . . . . . . . Parts Sabotaged . | . . . . . . . Parts Stolen . | . . . . . . . Parts Stripped . | . . . . . . . Power Chain Reactions . | . . . . . . . Alert | -11 -10 -10 -9 -9 -7 -7 ------- Run | Yrd Mat Min Mat Min Zio Dee Peak Influence 114 | . 114 94 87 33 . . Initial 44 | . . 44 36 33 . . Average 38 | . 31 63 54 33 . . Maximum Alert Level . | . . . . . . . Low Security (%) 100 | 100 100 100 100 100 . . Level 1 . | . . . . . . . Level 2 . | . . . . . . . Level 3 . | . . . . . . . Level 4 . | . . . . . . . Level 5 . | . . . . . . . High Security . | . . . . . . . Max Security . | . . . . . . . Squads Dispatched 3 | . 2 . 1 . . . Investigation 2 | . 1 . 1 . . . Extermination . | . . . . . . . Reinforcement 1 | . 1 . . . . . Assault . | . . . . . . . Garrison . | . . . . . . . Intercept . | . . . . . . . Searches Triggered . | . . . . . . . Construction Impeded . | . . . . . . . Haulers Reinforced . | . . . . . . . Active Scanning Responses . | . . . . . . . Cargo Convoy Interrupts . | . . . . . . . Stealth | -11 -10 -10 -9 -9 -7 -7 --------- Run | Yrd Mat Min Mat Min Zio Dee Distress Signals 2 | . 2 . . . . . Communications Jammed . | . . . . . . . Distress Signals . | . . . . . . . Times Spotted 24 | . 14 2 2 . . 6 Peak Tracking Total 7 | . 7 3 2 . . 3 Tactical Retreats 6 | . 4 1 1 . . . Traps | -11 -10 -10 -9 -9 -7 -7 ------- Run | Yrd Mat Min Mat Min Zio Dee Traps Triggered 2 | . 2 . . . . . Indirectly . | . . . . . . . Trap Hack Attempts . | . . . . . . . Triggered . | . . . . . . . Disarmed . | . . . . . . . Reprogrammed . | . . . . . . . Reused . | . . . . . . . Traps Extracted . | . . . . . . . Installed . | . . . . . . . Triggered . | . . . . . . . Machines | -11 -10 -10 -9 -9 -7 -7 ---------- Run | Yrd Mat Min Mat Min Zio Dee Machines Disabled 2 | . . . . . . 2 Max in Single Turn . | . . . . . . . Machines Repaired . | . . . . . . . Machines Dismantled . | . . . . . . . Machines Sabotaged . | . . . . . . . Overloaded Fab Kills . | . . . . . . . Hacking | -11 -10 -10 -9 -9 -7 -7 --------- Run | Yrd Mat Min Mat Min Zio Dee Machines Accessed 9 | . 5 1 3 . . . Terminals 6 | . 4 1 1 . . . Fabricators . | . . . . . . . Repair Stations 1 | . . . 1 . . . Recycling Units 2 | . 1 . 1 . . . Scanalyzers . | . . . . . . . Garrison Access . | . . . . . . . Total Hacks 20 | . 15 2 3 . . . Successful 11 | . 7 1 3 . . . Failed 9 | . 8 1 . . . . Catastrophic 2 | . 2 . . . . . Database Lockouts . | . . . . . . . Manual 24 | . 15 2 2 . 5 . Terminals 17 | . 14 2 1 . . . Fabricators . | . . . . . . . Repair Stations 1 | . . . 1 . . . Recycling Units 2 | . 1 . 1 . . . Scanalyzers . | . . . . . . . Garrison Access . | . . . . . . . Terminal Hacks 4 | . 4 . . . . . Part Schematic 3 | . 3 . . . . . Branch Access Points 1 | . 1 . . . . . Fabricator Hacks . | . . . . . . . Repair Station Hacks 1 | . . . 1 . . . Refit 1 | . . . 1 . . . Recycling Unit Hacks . | . . . . . . . Scanalyzer . | . . . . . . . Garrison Access Hacks . | . . . . . . . Unauthorized Hacks 6 | . 3 1 2 . . . Terminals 4 | . 2 1 1 . . . Botnet 4 | . 2 1 1 . . . Fabricators . | . . . . . . . Repair Stations . | . . . . . . . Recycling Units 2 | . 1 . 1 . . . Tunnel 2 | . 1 . 1 . . . Scanalyzers . | . . . . . . . Garrison Access . | . . . . . . . Data Cores Recovered . | . . . . . . . Used . | . . . . . . . Hacking Detections 5 | . 4 1 . . . . Full Trace Events . | . . . . . . . Feedback Events . | . . . . . . . Feedback Blocked . | . . . . . . . Robot Schematics Acquired 4 | . . . . . 4 . Robots Built . | . . . . . . . Authchips . | . . . . . . . Time . | . . . . . . . Total Robot Build Rating . | . . . . . . . Part Schematics Acquired 18 | . 3 . . . 15 . Parts Built . | . . . . . . . Authchips . | . . . . . . . Time . | . . . . . . . Total Part Build Rating . | . . . . . . . Parts Repaired . | . . . . . . . Time . | . . . . . . . Parts Recycled . | . . . . . . . Recycled Matter . | . . . . . . . Retrieved Matter . | . . . . . . . Retrieved Components . | . . . . . . . Parts Scanalyzed . | . . . . . . . Part Schematics Acquired . | . . . . . . . Parts Damaged . | . . . . . . . Bothacking | -11 -10 -10 -9 -9 -7 -7 ------------ Run | Yrd Mat Min Mat Min Zio Dee Used RIF Installer . | . . . . . . . Robots Hacked . | . . . . . . . Non-combat . | . . . . . . . Combat . | . . . . . . . Robot Hacks Applied . | . . . . . . . Relay Couplers Released . | . . . . . . . Fabnet Peak Effective % . | . . . . . . . Robots Rewired . | . . . . . . . Allies Hacked . | . . . . . . . Hacks Repelled . | . . . . . . . Allies | -11 -10 -10 -9 -9 -7 -7 -------- Run | Yrd Mat Min Mat Min Zio Dee Total Allies 6 | . . . . . 6 . Largest Group 6 | . . . . . 6 6 Highest-Rated Group 113 | . . . . . 113 113 Highest-Rated Ally 31 | . . . . . 31 31 Total Orders . | . . . . . . . Ally Attacks 33 | . . . . . . 33 Total Damage 2624 | . . . . . . 2624 Kills 8 | . . . . . . 8 Allies Corrupted . | . . . . . . . Allies Melted . | . . . . . . . Intel | -11 -10 -10 -9 -9 -7 -7 ------- Run | Yrd Mat Min Mat Min Zio Dee Robot Analysis Total . | . . . . . . . Derelict Logs Recovered 2 | . . . . . 2 . Drone Launches . | . . . . . . . Drone Recoveries . | . . . . . . . Exploration | -11 -10 -10 -9 -9 -7 -7 ------------- Run | Yrd Mat Min Mat Min Zio Dee Turns Passed 1075 | 14 139 32 59 36 678 117 Spaces Moved 1632 | 29 250 63 113 74 954 149 Core 945 | 29 250 63 113 38 351 101 Treads . | . . . . . . . Legs . | . . . . . . . Wheels . | . . . . . . . Hover . | . . . . . . . Flight 687 | . . . . 36 603 48 Fastest Speed 40 | 50 50 50 50 40 40 40 Average Speed 59 | 50 50 50 50 45 64 68 Slowest Speed 120 | 50 50 50 50 50 120 100 Overloaded Moves . | . . . . . . . Propulsion Burnouts . | . . . . . . . Robots Hopped . | . . . . . . . Cave-ins Triggered . | . . . . . . . Exploration Rate (%) 35 | 3 60 23 17 21 85 41 Regions Visited 6 Branch Regions 4 Pre-discovered Areas 3 | . 1 . 1 . 1 . Known Exits Taken 1 | . 1 . . . . . Unknown Exits Taken 5 | 1 . 1 1 1 1 . Scrap Searched 5 | . . 1 . 1 3 . Spaces Dug . | . . . . . . . Terrain Destroyed . | . . . . . . . Melee . | . . . . . . . Projectile . | . . . . . . . AOE . | . . . . . . . Terrain Rammed . | . . . . . . . Walls Destroyed . | . . . . . . . Machines Disabled . | . . . . . . . Actions | -11 -10 -10 -9 -9 -7 -7 --------- Run | Yrd Mat Min Mat Min Zio Dee Total 1725 | 28 263 62 117 75 1015 165 Wait 57 | . 9 . . . 40 8 Move 1626 | 28 249 62 112 73 953 149 Hop . | . . . . . . . Pick Up 11 | . 4 . . . 5 2 Fast Attach 6 | . . . . 1 5 . Attach 4 | . 1 . . 1 . 2 Detach 4 | . . . 1 . 3 . Swap 2 | . . . . . 2 . Drop 14 | . . . 4 . 6 4 Fire . | . . . . . . . Melee 1 | . . . . . 1 . Ram . | . . . . . . . Kick . | . . . . . . . Crush . | . . . . . . . Escape Stasis . | . . . . . . . Rewire . | . . . . . . . Trap . | . . . . . . . Miscellaneous . | . . . . . . . Route ------- -11/Scrapyard -10/Materials (discovered 2 exits: *Mat / *Min) -10/Mines -9/Materials -9/Mines -7/Zion (discovered 2 exits: [*Dee] / [*Pro]) -7/Deep Caves History --------- Turn | Location | Event 6 | -11/Scrapyard | Discovered new exit (range 15) 15 | -11/Scrapyard | Entered Materials 109 | -10/Materials | Identified exit to Mines 133 | -10/Materials | Discovered new exit (range 10) 154 | -10/Materials | Entered Mines 171 | -10/Mines | Discovered new exit (range 16) 186 | -10/Mines | Entered Materials 186 | -9/Materials | Evolved 2 slots: Propulsion x2 239 | -9/Materials | Discovered new exit (range 13) 245 | -9/Materials | Entered Mines 252 | -9/Mines | A Derelict revealed a hidden shortcut to a safe place 281 | -9/Mines | Entered Zion 294 | -7/Zion | Received a visual enhancement algorithm 306 | -7/Zion | Build established: Mutant 314 | -7/Zion | Discovered new exit (range 11) 371 | -7/Zion | Found CR-A16's Pointy Stick 420 | -7/Zion | Learned Factory terminal intel 466 | -7/Zion | Learned Factory stockpile data 555 | -7/Zion | Found Prototype Processor 555 | -7/Zion | Identified Exp. Targeting Computer 559 | -7/Zion | Found Prototype Processor 559 | -7/Zion | Identified Spectral Analyzer 563 | -7/Zion | Found Prototype Processor 563 | -7/Zion | Identified Exp. Core Analyzer 643 | -7/Zion | Gained Derelict followers 772 | -7/Zion | Acquired unknown access codes intercepted by a Zionite 904 | -7/Zion | Opened final containment barrier to the Deep Caves 918 | -7/Zion | Discovered new exit (range 5) 920 | -7/Zion | Saw the warning signs outside the Deep Caves entrance 959 | -7/Zion | Entered Deep Caves 959 | -7/Deep Caves | Accompanied by 6 allies 1059 | -7/Deep Caves | Z-Facility disabled 1060 | -7/Deep Caves | Core integrity fell below 50% 1060 | -7/Deep Caves | Core integrity fell below 20% 1076 | -7/Deep Caves | Destroyed by EC-GQ1(z) with Zionite Laser-S Last Messages --------------- 01009_ System corrupted: Component data lost. 01029_ AGSOPTHN50LN1TY:KCCLP9 01033_ Dropped ECM Suite. 01034_ Dropped Heat Sink. 01035_ Dropped Weight Redist. System. 01036_ Dropped Sml. Storage Unit. 01037_ Acquired ECM Suite. 01039_ Acquired Weight Redist. System. 01048_ System corrupted: Component data lost. 01053_ NEW_ZION: Z-Facility proximity alert. 01053_ FE-6OL(o) destroyed. 01059_ Z-Power explodes. 01059_ VO-9NZ(o) destroyed. 01059_ Z-Facility disabled. 01059_ 70-1H4(o) destroyed. 01059_ DO-WCA(o) destroyed. 01059_ GG-GT0(o) destroyed. 01059_ Flight Unit destroyed. 01059_ Backup Power I destroyed. 01075_ HO-A5J(s) destroyed. Map ----- +----------------------------------------------------+ | ??????????????????????????????????????"" | | ??????????????????????????????????????""""" | | ???????????????????????? ????????" | | ????????????????????? ???"" | | ?????????????????? "?" | | ???????????????? """ | | ????????????? " | | ??????????? " | | ????????? | | ???????? | | ???????? | | ??????? | | ??????? | | ???????# | | ???????# | | ????????# | | ????????# | | ????? ??# | | ???? # | | ???? | | ???? | | ??? | | ??? | | ??? | | ??# | | ??# @ | | ????# | | ????# | | ?????# s | | ?????# zz% s ;## | | ?????# ### z### ;;###? | | ?????## #???# ??## ####??? | | ??????# ?????####???### #####?????? | | ??????## ###????????????????###########?????????? | | ???????#?????????????????????????????????????????? | | | | | | | | | | | | | | | | | | | | | | | | | | | | | | | +----------------------------------------------------+ Best States ------------- Heat Dissipation 28 Energy Generation 9 Energy Capacity 100 Matter Stores 300 Matter Capacity 300 Sight Range 24 Terrain Scan Density 10 ECM Strength 1 Additional Mass Support 6 Armor Coverage 80 Evasion (%) 62 Item Schematics ----------------- Sensor Array | -10/Materials | Hacked Signal Interpreter | -10/Materials | Hacked Propulsion Shielding | -10/Materials | Hacked Imp. Recalibrator | -7/Zion | Archive Imp. Carbon-fiber Leg | -7/Zion | Archive Magnetic Acceleration Cannon | -7/Zion | Archive Kinecellerator | -7/Zion | Archive Imp. Proton Missile Launcher | -7/Zion | Archive Imp. Deuterium Engine | -7/Zion | Archive Imp. Reaction Control System | -7/Zion | Archive Core Analyzer | -7/Zion | Archive Matter Compressor | -7/Zion | Archive Hvy. Rocket Launcher | -7/Zion | Archive Enh. Gauss Cannon | -7/Zion | Archive Imp. Hardlight Generator | -7/Zion | Archive Med. Reactive Plating | -7/Zion | Archive Transmission Jammer | -7/Zion | Archive Nuclear Pulse Thruster | -7/Zion | Archive Robot Schematics ------------------ A-02 Transporter | -7/Zion | Archive T-07 Excavator | -7/Zion | Archive L-31 Rogue | -7/Zion | Archive X-82 Rainmaker | -7/Zion | Archive Fabricated ------------ Nothing Alien Tech Used ----------------- None Achievements -------------- Signs Are For Wimps Challenges ------------ None Game ------ Seed TeslaMappingMultitool Manual? 0 Play Time 00:30:23 Cumulative 57.7 hours Start 2024.10.22 @ 05:40:42 End 2024.10.22 @ 06:16:06 Sessions 1 Manual Loads 0 Difficulty Rogue Special Mode None Game No. 47 Rogue 47 Adventurer 0 Explorer 0 Win Type - Total 0 Types 0/0/0/0/0/0/0/0/0 Lore% 24 Gallery% 36 Achievement% 36 Wizard Run 0 Options --------- Layout 1 ASCII 0 Keyboard 0 Movement Mouse Keybinds 0 Fullscreen 2 Font 24/X11 Map View 50x35 Zoom Use 0% Tactical HUD 1 Map Filters NONE Filters NONE Steam 1 RUN: 6fd34855-b50c-4284-8ee1-032d2c9b5138